{"text_format":"3","workbook":"xlsx","n_sheets":5,"sheets":["Σύνοψη έτους έως σήμερα","1ο τρίμηνο","2ο τρίμηνο","3ο τρίμηνο","4ο τρίμηνο"],"not_rendered":{"defined_names":12},"read":"whole","date_system":"1900"}

{"sheet":"Σύνοψη έτους έως σήμερα","index":0,"n_rows":36,"n_cols":12,"rows_kept":36,"merged":[[3,0,3,6]]}
["Επωνυμία εταιρείας"]
["Ημερολόγιο παρακολούθησης παρουσιών, Σύνοψη έτους έως σήμερα"]
["Ημερομηνία"]
[{"$f":"Επωνυμία_Εταιρείας","v":"Επωνυμία εταιρείας"},{"$nulls":6},"ΕΜΠΙΣΤΕΥΤΙΚΌ"]
["Επώνυμο","Όνομα","Διακοπές","Προσωπικοί λόγοι","Ασθένεια","ΑΜΚΑ","Θέση","Προϊστάμενος","Ημερομηνία πρόσληψης","Σχόλια","Ημέρες άδειας διακοπών \nανά έτος","Ημέρες άδειας διακοπών \nπου απομένουν"]
["Επώνυμο","Όνομα",{"$f":"SUM('1ο τρίμηνο:4ο τρίμηνο'!C6)","v":3},{"$f":"SUM('1ο τρίμηνο:4ο τρίμηνο'!D6)","v":0},{"$f":"SUM('1ο τρίμηνο:4ο τρίμηνο'!E6)","v":1},"xxx-xx-xxxx","Διευθυντής","Όνομα",null,null,10,{"$f":"K6-C6","v":7}]
[null,null,{"$f":"SUM('1ο τρίμηνο:4ο τρίμηνο'!C7)","v":0},{"$f":"SUM('1ο τρίμηνο:4ο τρίμηνο'!D7)","v":0},{"$f":"SUM('1ο τρίμηνο:4ο τρίμηνο'!E7)","v":0},{"$nulls":6},{"$f":"K7-C7","v":0}]
[null,null,{"$f":"SUM('1ο τρίμηνο:4ο τρίμηνο'!C8)","v":0},{"$f":"SUM('1ο τρίμηνο:4ο τρίμηνο'!D8)","v":0},{"$f":"SUM('1ο τρίμηνο:4ο τρίμηνο'!E8)","v":0},{"$nulls":6},0]
[null,null,{"$f":"SUM('1ο τρίμηνο:4ο τρίμηνο'!C9)","v":0},{"$f":"SUM('1ο τρίμηνο:4ο τρίμηνο'!D9)","v":0},{"$f":"SUM('1ο τρίμηνο:4ο τρίμηνο'!E9)","v":0},{"$nulls":6},0]
[null,null,{"$f":"SUM('1ο τρίμηνο:4ο τρίμηνο'!C10)","v":0},{"$f":"SUM('1ο τρίμηνο:4ο τρίμηνο'!D10)","v":0},{"$f":"SUM('1ο τρίμηνο:4ο τρίμηνο'!E10)","v":0},{"$nulls":6},0]
[null,null,{"$f":"SUM('1ο τρίμηνο:4ο τρίμηνο'!C11)","v":0},{"$f":"SUM('1ο τρίμηνο:4ο τρίμηνο'!D11)","v":0},{"$f":"SUM('1ο τρίμηνο:4ο τρίμηνο'!E11)","v":0},{"$nulls":6},0]
[null,null,{"$f":"SUM('1ο τρίμηνο:4ο τρίμηνο'!C12)","v":0},{"$f":"SUM('1ο τρίμηνο:4ο τρίμηνο'!D12)","v":0},{"$f":"SUM('1ο τρίμηνο:4ο τρίμηνο'!E12)","v":0},{"$nulls":6},0]
[null,null,{"$f":"SUM('1ο τρίμηνο:4ο τρίμηνο'!C13)","v":0},{"$f":"SUM('1ο τρίμηνο:4ο τρίμηνο'!D13)","v":0},{"$f":"SUM('1ο τρίμηνο:4ο τρίμηνο'!E13)","v":0},{"$nulls":6},0]
[null,null,{"$f":"SUM('1ο τρίμηνο:4ο τρίμηνο'!C14)","v":0},{"$f":"SUM('1ο τρίμηνο:4ο τρίμηνο'!D14)","v":0},{"$f":"SUM('1ο τρίμηνο:4ο τρίμηνο'!E14)","v":0},{"$nulls":6},0]
[null,null,{"$f":"SUM('1ο τρίμηνο:4ο τρίμηνο'!C15)","v":0},{"$f":"SUM('1ο τρίμηνο:4ο τρίμηνο'!D15)","v":0},{"$f":"SUM('1ο τρίμηνο:4ο τρίμηνο'!E15)","v":0},{"$nulls":6},0]
[null,null,{"$f":"SUM('1ο τρίμηνο:4ο τρίμηνο'!C16)","v":0},{"$f":"SUM('1ο τρίμηνο:4ο τρίμηνο'!D16)","v":0},{"$f":"SUM('1ο τρίμηνο:4ο τρίμηνο'!E16)","v":0},{"$nulls":6},0]
[null,null,{"$f":"SUM('1ο τρίμηνο:4ο τρίμηνο'!C17)","v":0},{"$f":"SUM('1ο τρίμηνο:4ο τρίμηνο'!D17)","v":0},{"$f":"SUM('1ο τρίμηνο:4ο τρίμηνο'!E17)","v":0},{"$nulls":6},0]
[null,null,{"$f":"SUM('1ο τρίμηνο:4ο τρίμηνο'!C18)","v":0},{"$f":"SUM('1ο τρίμηνο:4ο τρίμηνο'!D18)","v":0},{"$f":"SUM('1ο τρίμηνο:4ο τρίμηνο'!E18)","v":0},{"$nulls":6},0]
[null,null,{"$f":"SUM('1ο τρίμηνο:4ο τρίμηνο'!C19)","v":0},{"$f":"SUM('1ο τρίμηνο:4ο τρίμηνο'!D19)","v":0},{"$f":"SUM('1ο τρίμηνο:4ο τρίμηνο'!E19)","v":0},{"$nulls":6},0]
[null,null,{"$f":"SUM('1ο τρίμηνο:4ο τρίμηνο'!C20)","v":0},{"$f":"SUM('1ο τρίμηνο:4ο τρίμηνο'!D20)","v":0},{"$f":"SUM('1ο τρίμηνο:4ο τρίμηνο'!E20)","v":0},{"$nulls":6},0]
[null,null,{"$f":"SUM('1ο τρίμηνο:4ο τρίμηνο'!C21)","v":0},{"$f":"SUM('1ο τρίμηνο:4ο τρίμηνο'!D21)","v":0},{"$f":"SUM('1ο τρίμηνο:4ο τρίμηνο'!E21)","v":0},{"$nulls":6},0]
[null,null,{"$f":"SUM('1ο τρίμηνο:4ο τρίμηνο'!C22)","v":0},{"$f":"SUM('1ο τρίμηνο:4ο τρίμηνο'!D22)","v":0},{"$f":"SUM('1ο τρίμηνο:4ο τρίμηνο'!E22)","v":0},{"$nulls":6},0]
[null,null,{"$f":"SUM('1ο τρίμηνο:4ο τρίμηνο'!C23)","v":0},{"$f":"SUM('1ο τρίμηνο:4ο τρίμηνο'!D23)","v":0},{"$f":"SUM('1ο τρίμηνο:4ο τρίμηνο'!E23)","v":0},{"$nulls":6},0]
[null,null,{"$f":"SUM('1ο τρίμηνο:4ο τρίμηνο'!C24)","v":0},{"$f":"SUM('1ο τρίμηνο:4ο τρίμηνο'!D24)","v":0},{"$f":"SUM('1ο τρίμηνο:4ο τρίμηνο'!E24)","v":0},{"$nulls":6},0]
[null,null,{"$f":"SUM('1ο τρίμηνο:4ο τρίμηνο'!C25)","v":0},{"$f":"SUM('1ο τρίμηνο:4ο τρίμηνο'!D25)","v":0},{"$f":"SUM('1ο τρίμηνο:4ο τρίμηνο'!E25)","v":0},{"$nulls":6},0]
[null,null,{"$f":"SUM('1ο τρίμηνο:4ο τρίμηνο'!C26)","v":0},{"$f":"SUM('1ο τρίμηνο:4ο τρίμηνο'!D26)","v":0},{"$f":"SUM('1ο τρίμηνο:4ο τρίμηνο'!E26)","v":0},{"$nulls":6},0]
[null,null,{"$f":"SUM('1ο τρίμηνο:4ο τρίμηνο'!C27)","v":0},{"$f":"SUM('1ο τρίμηνο:4ο τρίμηνο'!D27)","v":0},{"$f":"SUM('1ο τρίμηνο:4ο τρίμηνο'!E27)","v":0},{"$nulls":6},0]
[null,null,{"$f":"SUM('1ο τρίμηνο:4ο τρίμηνο'!C28)","v":0},{"$f":"SUM('1ο τρίμηνο:4ο τρίμηνο'!D28)","v":0},{"$f":"SUM('1ο τρίμηνο:4ο τρίμηνο'!E28)","v":0},{"$nulls":6},0]
[null,null,{"$f":"SUM('1ο τρίμηνο:4ο τρίμηνο'!C29)","v":0},{"$f":"SUM('1ο τρίμηνο:4ο τρίμηνο'!D29)","v":0},{"$f":"SUM('1ο τρίμηνο:4ο τρίμηνο'!E29)","v":0},{"$nulls":6},0]
[null,null,{"$f":"SUM('1ο τρίμηνο:4ο τρίμηνο'!C30)","v":0},{"$f":"SUM('1ο τρίμηνο:4ο τρίμηνο'!D30)","v":0},{"$f":"SUM('1ο τρίμηνο:4ο τρίμηνο'!E30)","v":0},{"$nulls":6},0]
[null,null,{"$f":"SUM('1ο τρίμηνο:4ο τρίμηνο'!C31)","v":0},{"$f":"SUM('1ο τρίμηνο:4ο τρίμηνο'!D31)","v":0},{"$f":"SUM('1ο τρίμηνο:4ο τρίμηνο'!E31)","v":0},{"$nulls":6},0]
[null,null,{"$f":"SUM('1ο τρίμηνο:4ο τρίμηνο'!C32)","v":0},{"$f":"SUM('1ο τρίμηνο:4ο τρίμηνο'!D32)","v":0},{"$f":"SUM('1ο τρίμηνο:4ο τρίμηνο'!E32)","v":0},{"$nulls":6},0]
[null,null,{"$f":"SUM('1ο τρίμηνο:4ο τρίμηνο'!C33)","v":0},{"$f":"SUM('1ο τρίμηνο:4ο τρίμηνο'!D33)","v":0},{"$f":"SUM('1ο τρίμηνο:4ο τρίμηνο'!E33)","v":0},{"$nulls":6},0]
[null,null,{"$f":"SUM('1ο τρίμηνο:4ο τρίμηνο'!C34)","v":0},{"$f":"SUM('1ο τρίμηνο:4ο τρίμηνο'!D34)","v":0},{"$f":"SUM('1ο τρίμηνο:4ο τρίμηνο'!E34)","v":0},{"$nulls":6},0]
[null,null,{"$f":"SUM('1ο τρίμηνο:4ο τρίμηνο'!C35)","v":0},{"$f":"SUM('1ο τρίμηνο:4ο τρίμηνο'!D35)","v":0},{"$f":"SUM('1ο τρίμηνο:4ο τρίμηνο'!E35)","v":0},{"$nulls":6},0]
[null,null,{"$f":"SUM('1ο τρίμηνο:4ο τρίμηνο'!C36)","v":0},{"$f":"SUM('1ο τρίμηνο:4ο τρίμηνο'!D36)","v":0},{"$f":"SUM('1ο τρίμηνο:4ο τρίμηνο'!E36)","v":0},{"$nulls":6},0]

{"sheet":"1ο τρίμηνο","index":1,"n_rows":36,"n_cols":95,"rows_kept":36,"merged":[[3,0,3,6]]}
[{"$f":"Επωνυμία_Εταιρείας","v":"Επωνυμία εταιρείας"}]
["Ημερολόγιο παρακολούθησης παρουσιών, 1ο τρίμηνο"]
["Ημερομηνία"]
[{"$f":"Επωνυμία_Εταιρείας","v":"Επωνυμία εταιρείας"},{"$nulls":6},"ΕΜΠΙΣΤΕΥΤΙΚΌ"]
["Επώνυμο","Όνομα","Διακοπές","Προσωπικοί λόγοι","Ασθένεια","1/1","2/1","3/1","4/1","5/1","6/1","7/1","8/1","9/1","10/1","11/1","12/1","13/1","14/1","15/1","16/1","17/1","18/1","19/1","20/1","21/1","22/1","23/1","24/1","25/1","26/1","27/1","28/1","29/1","30/1","31/1","1/2","2/2","3/2","4/2","5/2","6/2","7/2","8/2","9/2","10/2","11/2","12/2","13/2","14/2","15/2","16/2","17/2","18/2","19/2","20/2","21/2","22/2","23/2","24/2","25/2","26/2","27/2","28/2","1/3","2/3","3/3","4/3","5/3","6/3","7/3","8/3","9/3","10/3","11/3","12/3","13/3","14/3","15/3","16/3","17/3","18/3","19/3","20/3","21/3","22/3","23/3","24/3","25/3","26/3","27/3","28/3","29/3","30/3","31/3"]
[{"$f":"IF(ISBLANK('Σύνοψη έτους έως σήμερα'!A6),\"\",'Σύνοψη έτους έως σήμερα'!A6)","v":"Επώνυμο"},{"$f":"IF(ISBLANK('Σύνοψη έτους έως σήμερα'!B6),\"\",'Σύνοψη έτους έως σήμερα'!B6)","v":"Όνομα"},{"$f":"COUNTIF($F6:$CQ6, \"Δ\")","v":3},{"$f":"COUNTIF($F6:$CQ6, \"Π\")","v":0},{"$f":"COUNTIF($F6:$CQ6, \"Α\")","v":1},"δ","δ","δ",{"$nulls":4},"α"]
[{"$f":"IF(ISBLANK('Σύνοψη έτους έως σήμερα'!A7),\"\",'Σύνοψη έτους έως σήμερα'!A7)","v":""},{"$f":"IF(ISBLANK('Σύνοψη έτους έως σήμερα'!B7),\"\",'Σύνοψη έτους έως σήμερα'!B7)","v":""},0,0,0]
[{"$f":"IF(ISBLANK('Σύνοψη έτους έως σήμερα'!A8),\"\",'Σύνοψη έτους έως σήμερα'!A8)","v":""},{"$f":"IF(ISBLANK('Σύνοψη έτους έως σήμερα'!B8),\"\",'Σύνοψη έτους έως σήμερα'!B8)","v":""},0,0,0]
[{"$f":"IF(ISBLANK('Σύνοψη έτους έως σήμερα'!A9),\"\",'Σύνοψη έτους έως σήμερα'!A9)","v":""},{"$f":"IF(ISBLANK('Σύνοψη έτους έως σήμερα'!B9),\"\",'Σύνοψη έτους έως σήμερα'!B9)","v":""},0,0,0]
[{"$f":"IF(ISBLANK('Σύνοψη έτους έως σήμερα'!A10),\"\",'Σύνοψη έτους έως σήμερα'!A10)","v":""},{"$f":"IF(ISBLANK('Σύνοψη έτους έως σήμερα'!B10),\"\",'Σύνοψη έτους έως σήμερα'!B10)","v":""},0,0,0]
[{"$f":"IF(ISBLANK('Σύνοψη έτους έως σήμερα'!A11),\"\",'Σύνοψη έτους έως σήμερα'!A11)","v":""},{"$f":"IF(ISBLANK('Σύνοψη έτους έως σήμερα'!B11),\"\",'Σύνοψη έτους έως σήμερα'!B11)","v":""},0,0,0]
[{"$f":"IF(ISBLANK('Σύνοψη έτους έως σήμερα'!A12),\"\",'Σύνοψη έτους έως σήμερα'!A12)","v":""},{"$f":"IF(ISBLANK('Σύνοψη έτους έως σήμερα'!B12),\"\",'Σύνοψη έτους έως σήμερα'!B12)","v":""},0,0,0]
[{"$f":"IF(ISBLANK('Σύνοψη έτους έως σήμερα'!A13),\"\",'Σύνοψη έτους έως σήμερα'!A13)","v":""},{"$f":"IF(ISBLANK('Σύνοψη έτους έως σήμερα'!B13),\"\",'Σύνοψη έτους έως σήμερα'!B13)","v":""},0,0,0]
[{"$f":"IF(ISBLANK('Σύνοψη έτους έως σήμερα'!A14),\"\",'Σύνοψη έτους έως σήμερα'!A14)","v":""},{"$f":"IF(ISBLANK('Σύνοψη έτους έως σήμερα'!B14),\"\",'Σύνοψη έτους έως σήμερα'!B14)","v":""},0,0,0]
[{"$f":"IF(ISBLANK('Σύνοψη έτους έως σήμερα'!A15),\"\",'Σύνοψη έτους έως σήμερα'!A15)","v":""},{"$f":"IF(ISBLANK('Σύνοψη έτους έως σήμερα'!B15),\"\",'Σύνοψη έτους έως σήμερα'!B15)","v":""},0,0,0]
[{"$f":"IF(ISBLANK('Σύνοψη έτους έως σήμερα'!A16),\"\",'Σύνοψη έτους έως σήμερα'!A16)","v":""},{"$f":"IF(ISBLANK('Σύνοψη έτους έως σήμερα'!B16),\"\",'Σύνοψη έτους έως σήμερα'!B16)","v":""},0,0,0]
[{"$f":"IF(ISBLANK('Σύνοψη έτους έως σήμερα'!A17),\"\",'Σύνοψη έτους έως σήμερα'!A17)","v":""},{"$f":"IF(ISBLANK('Σύνοψη έτους έως σήμερα'!B17),\"\",'Σύνοψη έτους έως σήμερα'!B17)","v":""},0,0,0]
[{"$f":"IF(ISBLANK('Σύνοψη έτους έως σήμερα'!A18),\"\",'Σύνοψη έτους έως σήμερα'!A18)","v":""},{"$f":"IF(ISBLANK('Σύνοψη έτους έως σήμερα'!B18),\"\",'Σύνοψη έτους έως σήμερα'!B18)","v":""},0,0,0]
[{"$f":"IF(ISBLANK('Σύνοψη έτους έως σήμερα'!A19),\"\",'Σύνοψη έτους έως σήμερα'!A19)","v":""},{"$f":"IF(ISBLANK('Σύνοψη έτους έως σήμερα'!B19),\"\",'Σύνοψη έτους έως σήμερα'!B19)","v":""},0,0,0]
[{"$f":"IF(ISBLANK('Σύνοψη έτους έως σήμερα'!A20),\"\",'Σύνοψη έτους έως σήμερα'!A20)","v":""},{"$f":"IF(ISBLANK('Σύνοψη έτους έως σήμερα'!B20),\"\",'Σύνοψη έτους έως σήμερα'!B20)","v":""},0,0,0]
[{"$f":"IF(ISBLANK('Σύνοψη έτους έως σήμερα'!A21),\"\",'Σύνοψη έτους έως σήμερα'!A21)","v":""},{"$f":"IF(ISBLANK('Σύνοψη έτους έως σήμερα'!B21),\"\",'Σύνοψη έτους έως σήμερα'!B21)","v":""},0,0,0]
[{"$f":"IF(ISBLANK('Σύνοψη έτους έως σήμερα'!A22),\"\",'Σύνοψη έτους έως σήμερα'!A22)","v":""},{"$f":"IF(ISBLANK('Σύνοψη έτους έως σήμερα'!B22),\"\",'Σύνοψη έτους έως σήμερα'!B22)","v":""},0,0,0]
[{"$f":"IF(ISBLANK('Σύνοψη έτους έως σήμερα'!A23),\"\",'Σύνοψη έτους έως σήμερα'!A23)","v":""},{"$f":"IF(ISBLANK('Σύνοψη έτους έως σήμερα'!B23),\"\",'Σύνοψη έτους έως σήμερα'!B23)","v":""},0,0,0]
[{"$f":"IF(ISBLANK('Σύνοψη έτους έως σήμερα'!A24),\"\",'Σύνοψη έτους έως σήμερα'!A24)","v":""},{"$f":"IF(ISBLANK('Σύνοψη έτους έως σήμερα'!B24),\"\",'Σύνοψη έτους έως σήμερα'!B24)","v":""},0,0,0]
[{"$f":"IF(ISBLANK('Σύνοψη έτους έως σήμερα'!A25),\"\",'Σύνοψη έτους έως σήμερα'!A25)","v":""},{"$f":"IF(ISBLANK('Σύνοψη έτους έως σήμερα'!B25),\"\",'Σύνοψη έτους έως σήμερα'!B25)","v":""},0,0,0]
[{"$f":"IF(ISBLANK('Σύνοψη έτους έως σήμερα'!A26),\"\",'Σύνοψη έτους έως σήμερα'!A26)","v":""},{"$f":"IF(ISBLANK('Σύνοψη έτους έως σήμερα'!B26),\"\",'Σύνοψη έτους έως σήμερα'!B26)","v":""},0,0,0]
[{"$f":"IF(ISBLANK('Σύνοψη έτους έως σήμερα'!A27),\"\",'Σύνοψη έτους έως σήμερα'!A27)","v":""},{"$f":"IF(ISBLANK('Σύνοψη έτους έως σήμερα'!B27),\"\",'Σύνοψη έτους έως σήμερα'!B27)","v":""},0,0,0]
[{"$f":"IF(ISBLANK('Σύνοψη έτους έως σήμερα'!A28),\"\",'Σύνοψη έτους έως σήμερα'!A28)","v":""},{"$f":"IF(ISBLANK('Σύνοψη έτους έως σήμερα'!B28),\"\",'Σύνοψη έτους έως σήμερα'!B28)","v":""},0,0,0]
[{"$f":"IF(ISBLANK('Σύνοψη έτους έως σήμερα'!A29),\"\",'Σύνοψη έτους έως σήμερα'!A29)","v":""},{"$f":"IF(ISBLANK('Σύνοψη έτους έως σήμερα'!B29),\"\",'Σύνοψη έτους έως σήμερα'!B29)","v":""},0,0,0]
[{"$f":"IF(ISBLANK('Σύνοψη έτους έως σήμερα'!A30),\"\",'Σύνοψη έτους έως σήμερα'!A30)","v":""},{"$f":"IF(ISBLANK('Σύνοψη έτους έως σήμερα'!B30),\"\",'Σύνοψη έτους έως σήμερα'!B30)","v":""},0,0,0]
[{"$f":"IF(ISBLANK('Σύνοψη έτους έως σήμερα'!A31),\"\",'Σύνοψη έτους έως σήμερα'!A31)","v":""},{"$f":"IF(ISBLANK('Σύνοψη έτους έως σήμερα'!B31),\"\",'Σύνοψη έτους έως σήμερα'!B31)","v":""},0,0,0]
[{"$f":"IF(ISBLANK('Σύνοψη έτους έως σήμερα'!A32),\"\",'Σύνοψη έτους έως σήμερα'!A32)","v":""},{"$f":"IF(ISBLANK('Σύνοψη έτους έως σήμερα'!B32),\"\",'Σύνοψη έτους έως σήμερα'!B32)","v":""},0,0,0]
[{"$f":"IF(ISBLANK('Σύνοψη έτους έως σήμερα'!A33),\"\",'Σύνοψη έτους έως σήμερα'!A33)","v":""},{"$f":"IF(ISBLANK('Σύνοψη έτους έως σήμερα'!B33),\"\",'Σύνοψη έτους έως σήμερα'!B33)","v":""},0,0,0]
[{"$f":"IF(ISBLANK('Σύνοψη έτους έως σήμερα'!A34),\"\",'Σύνοψη έτους έως σήμερα'!A34)","v":""},{"$f":"IF(ISBLANK('Σύνοψη έτους έως σήμερα'!B34),\"\",'Σύνοψη έτους έως σήμερα'!B34)","v":""},0,0,0]
[{"$f":"IF(ISBLANK('Σύνοψη έτους έως σήμερα'!A35),\"\",'Σύνοψη έτους έως σήμερα'!A35)","v":""},{"$f":"IF(ISBLANK('Σύνοψη έτους έως σήμερα'!B35),\"\",'Σύνοψη έτους έως σήμερα'!B35)","v":""},0,0,0]
[{"$f":"IF(ISBLANK('Σύνοψη έτους έως σήμερα'!A36),\"\",'Σύνοψη έτους έως σήμερα'!A36)","v":""},{"$f":"IF(ISBLANK('Σύνοψη έτους έως σήμερα'!B36),\"\",'Σύνοψη έτους έως σήμερα'!B36)","v":""},0,0,0]

{"sheet":"2ο τρίμηνο","index":2,"n_rows":36,"n_cols":96,"rows_kept":36,"merged":[[3,0,3,6]]}
[{"$f":"Επωνυμία_Εταιρείας","v":"Επωνυμία εταιρείας"}]
["Ημερολόγιο παρακολούθησης παρουσιών, 2ο τρίμηνο"]
["Ημερομηνία"]
[{"$f":"Επωνυμία_Εταιρείας","v":"Επωνυμία εταιρείας"},{"$nulls":6},"ΕΜΠΙΣΤΕΥΤΙΚΌ"]
["Επώνυμο","Όνομα","Διακοπές","Προσωπικοί λόγοι","Ασθένεια","1/4","2/4","3/4","4/4","5/4","6/4","7/4","8/4","9/4","10/4","11/4","12/4","13/4","14/4","15/4","16/4","17/4","18/4","19/4","20/4","21/4","22/4","23/4","24/4","25/4","26/4","27/4","28/4","29/4","30/4","1/5","2/5","3/5","4/5","5/5","6/5","7/5","8/5","9/5","10/5","11/5","12/5","13/5","14/5","15/5","16/5","17/5","18/5","19/5","20/5","21/5","22/5","23/5","24/5","25/5","26/5","27/5","28/5","29/5","30/5","31/5","1/6","2/6","3/6","4/6","5/6","6/6","7/6","8/6","9/6","10/6","11/6","12/6","13/6","14/6","15/6","16/6","17/6","18/6","19/6","20/6","21/6","22/6","23/6","24/6","25/6","26/6","27/6","28/6","29/6","30/6"]
[{"$f":"IF(ISBLANK('Σύνοψη έτους έως σήμερα'!A6),\"\",'Σύνοψη έτους έως σήμερα'!A6)","v":"Επώνυμο"},{"$f":"IF(ISBLANK('Σύνοψη έτους έως σήμερα'!B6),\"\",'Σύνοψη έτους έως σήμερα'!B6)","v":"Όνομα"},{"$f":"COUNTIF($F6:$CR6, \"Δ\")","v":0},{"$f":"COUNTIF($F6:$CR6, \"Π\")","v":0},{"$f":"COUNTIF($F6:$CR6, \"Α\")","v":0}]
[{"$f":"IF(ISBLANK('Σύνοψη έτους έως σήμερα'!A7),\"\",'Σύνοψη έτους έως σήμερα'!A7)","v":""},{"$f":"IF(ISBLANK('Σύνοψη έτους έως σήμερα'!B7),\"\",'Σύνοψη έτους έως σήμερα'!B7)","v":""},0,0,0]
[{"$f":"IF(ISBLANK('Σύνοψη έτους έως σήμερα'!A8),\"\",'Σύνοψη έτους έως σήμερα'!A8)","v":""},{"$f":"IF(ISBLANK('Σύνοψη έτους έως σήμερα'!B8),\"\",'Σύνοψη έτους έως σήμερα'!B8)","v":""},0,0,0]
[{"$f":"IF(ISBLANK('Σύνοψη έτους έως σήμερα'!A9),\"\",'Σύνοψη έτους έως σήμερα'!A9)","v":""},{"$f":"IF(ISBLANK('Σύνοψη έτους έως σήμερα'!B9),\"\",'Σύνοψη έτους έως σήμερα'!B9)","v":""},0,0,0]
[{"$f":"IF(ISBLANK('Σύνοψη έτους έως σήμερα'!A10),\"\",'Σύνοψη έτους έως σήμερα'!A10)","v":""},{"$f":"IF(ISBLANK('Σύνοψη έτους έως σήμερα'!B10),\"\",'Σύνοψη έτους έως σήμερα'!B10)","v":""},0,0,0]
[{"$f":"IF(ISBLANK('Σύνοψη έτους έως σήμερα'!A11),\"\",'Σύνοψη έτους έως σήμερα'!A11)","v":""},{"$f":"IF(ISBLANK('Σύνοψη έτους έως σήμερα'!B11),\"\",'Σύνοψη έτους έως σήμερα'!B11)","v":""},0,0,0]
[{"$f":"IF(ISBLANK('Σύνοψη έτους έως σήμερα'!A12),\"\",'Σύνοψη έτους έως σήμερα'!A12)","v":""},{"$f":"IF(ISBLANK('Σύνοψη έτους έως σήμερα'!B12),\"\",'Σύνοψη έτους έως σήμερα'!B12)","v":""},0,0,0]
[{"$f":"IF(ISBLANK('Σύνοψη έτους έως σήμερα'!A13),\"\",'Σύνοψη έτους έως σήμερα'!A13)","v":""},{"$f":"IF(ISBLANK('Σύνοψη έτους έως σήμερα'!B13),\"\",'Σύνοψη έτους έως σήμερα'!B13)","v":""},0,0,0]
[{"$f":"IF(ISBLANK('Σύνοψη έτους έως σήμερα'!A14),\"\",'Σύνοψη έτους έως σήμερα'!A14)","v":""},{"$f":"IF(ISBLANK('Σύνοψη έτους έως σήμερα'!B14),\"\",'Σύνοψη έτους έως σήμερα'!B14)","v":""},0,0,0]
[{"$f":"IF(ISBLANK('Σύνοψη έτους έως σήμερα'!A15),\"\",'Σύνοψη έτους έως σήμερα'!A15)","v":""},{"$f":"IF(ISBLANK('Σύνοψη έτους έως σήμερα'!B15),\"\",'Σύνοψη έτους έως σήμερα'!B15)","v":""},0,0,0]
[{"$f":"IF(ISBLANK('Σύνοψη έτους έως σήμερα'!A16),\"\",'Σύνοψη έτους έως σήμερα'!A16)","v":""},{"$f":"IF(ISBLANK('Σύνοψη έτους έως σήμερα'!B16),\"\",'Σύνοψη έτους έως σήμερα'!B16)","v":""},0,0,0]
[{"$f":"IF(ISBLANK('Σύνοψη έτους έως σήμερα'!A17),\"\",'Σύνοψη έτους έως σήμερα'!A17)","v":""},{"$f":"IF(ISBLANK('Σύνοψη έτους έως σήμερα'!B17),\"\",'Σύνοψη έτους έως σήμερα'!B17)","v":""},0,0,0]
[{"$f":"IF(ISBLANK('Σύνοψη έτους έως σήμερα'!A18),\"\",'Σύνοψη έτους έως σήμερα'!A18)","v":""},{"$f":"IF(ISBLANK('Σύνοψη έτους έως σήμερα'!B18),\"\",'Σύνοψη έτους έως σήμερα'!B18)","v":""},0,0,0]
[{"$f":"IF(ISBLANK('Σύνοψη έτους έως σήμερα'!A19),\"\",'Σύνοψη έτους έως σήμερα'!A19)","v":""},{"$f":"IF(ISBLANK('Σύνοψη έτους έως σήμερα'!B19),\"\",'Σύνοψη έτους έως σήμερα'!B19)","v":""},0,0,0]
[{"$f":"IF(ISBLANK('Σύνοψη έτους έως σήμερα'!A20),\"\",'Σύνοψη έτους έως σήμερα'!A20)","v":""},{"$f":"IF(ISBLANK('Σύνοψη έτους έως σήμερα'!B20),\"\",'Σύνοψη έτους έως σήμερα'!B20)","v":""},0,0,0]
[{"$f":"IF(ISBLANK('Σύνοψη έτους έως σήμερα'!A21),\"\",'Σύνοψη έτους έως σήμερα'!A21)","v":""},{"$f":"IF(ISBLANK('Σύνοψη έτους έως σήμερα'!B21),\"\",'Σύνοψη έτους έως σήμερα'!B21)","v":""},0,0,0]
[{"$f":"IF(ISBLANK('Σύνοψη έτους έως σήμερα'!A22),\"\",'Σύνοψη έτους έως σήμερα'!A22)","v":""},{"$f":"IF(ISBLANK('Σύνοψη έτους έως σήμερα'!B22),\"\",'Σύνοψη έτους έως σήμερα'!B22)","v":""},0,0,0]
[{"$f":"IF(ISBLANK('Σύνοψη έτους έως σήμερα'!A23),\"\",'Σύνοψη έτους έως σήμερα'!A23)","v":""},{"$f":"IF(ISBLANK('Σύνοψη έτους έως σήμερα'!B23),\"\",'Σύνοψη έτους έως σήμερα'!B23)","v":""},0,0,0]
[{"$f":"IF(ISBLANK('Σύνοψη έτους έως σήμερα'!A24),\"\",'Σύνοψη έτους έως σήμερα'!A24)","v":""},{"$f":"IF(ISBLANK('Σύνοψη έτους έως σήμερα'!B24),\"\",'Σύνοψη έτους έως σήμερα'!B24)","v":""},0,0,0]
[{"$f":"IF(ISBLANK('Σύνοψη έτους έως σήμερα'!A25),\"\",'Σύνοψη έτους έως σήμερα'!A25)","v":""},{"$f":"IF(ISBLANK('Σύνοψη έτους έως σήμερα'!B25),\"\",'Σύνοψη έτους έως σήμερα'!B25)","v":""},0,0,0]
[{"$f":"IF(ISBLANK('Σύνοψη έτους έως σήμερα'!A26),\"\",'Σύνοψη έτους έως σήμερα'!A26)","v":""},{"$f":"IF(ISBLANK('Σύνοψη έτους έως σήμερα'!B26),\"\",'Σύνοψη έτους έως σήμερα'!B26)","v":""},0,0,0]
[{"$f":"IF(ISBLANK('Σύνοψη έτους έως σήμερα'!A27),\"\",'Σύνοψη έτους έως σήμερα'!A27)","v":""},{"$f":"IF(ISBLANK('Σύνοψη έτους έως σήμερα'!B27),\"\",'Σύνοψη έτους έως σήμερα'!B27)","v":""},0,0,0]
[{"$f":"IF(ISBLANK('Σύνοψη έτους έως σήμερα'!A28),\"\",'Σύνοψη έτους έως σήμερα'!A28)","v":""},{"$f":"IF(ISBLANK('Σύνοψη έτους έως σήμερα'!B28),\"\",'Σύνοψη έτους έως σήμερα'!B28)","v":""},0,0,0]
[{"$f":"IF(ISBLANK('Σύνοψη έτους έως σήμερα'!A29),\"\",'Σύνοψη έτους έως σήμερα'!A29)","v":""},{"$f":"IF(ISBLANK('Σύνοψη έτους έως σήμερα'!B29),\"\",'Σύνοψη έτους έως σήμερα'!B29)","v":""},0,0,0]
[{"$f":"IF(ISBLANK('Σύνοψη έτους έως σήμερα'!A30),\"\",'Σύνοψη έτους έως σήμερα'!A30)","v":""},{"$f":"IF(ISBLANK('Σύνοψη έτους έως σήμερα'!B30),\"\",'Σύνοψη έτους έως σήμερα'!B30)","v":""},0,0,0]
[{"$f":"IF(ISBLANK('Σύνοψη έτους έως σήμερα'!A31),\"\",'Σύνοψη έτους έως σήμερα'!A31)","v":""},{"$f":"IF(ISBLANK('Σύνοψη έτους έως σήμερα'!B31),\"\",'Σύνοψη έτους έως σήμερα'!B31)","v":""},0,0,0]
[{"$f":"IF(ISBLANK('Σύνοψη έτους έως σήμερα'!A32),\"\",'Σύνοψη έτους έως σήμερα'!A32)","v":""},{"$f":"IF(ISBLANK('Σύνοψη έτους έως σήμερα'!B32),\"\",'Σύνοψη έτους έως σήμερα'!B32)","v":""},0,0,0]
[{"$f":"IF(ISBLANK('Σύνοψη έτους έως σήμερα'!A33),\"\",'Σύνοψη έτους έως σήμερα'!A33)","v":""},{"$f":"IF(ISBLANK('Σύνοψη έτους έως σήμερα'!B33),\"\",'Σύνοψη έτους έως σήμερα'!B33)","v":""},0,0,0]
[{"$f":"IF(ISBLANK('Σύνοψη έτους έως σήμερα'!A34),\"\",'Σύνοψη έτους έως σήμερα'!A34)","v":""},{"$f":"IF(ISBLANK('Σύνοψη έτους έως σήμερα'!B34),\"\",'Σύνοψη έτους έως σήμερα'!B34)","v":""},0,0,0]
[{"$f":"IF(ISBLANK('Σύνοψη έτους έως σήμερα'!A35),\"\",'Σύνοψη έτους έως σήμερα'!A35)","v":""},{"$f":"IF(ISBLANK('Σύνοψη έτους έως σήμερα'!B35),\"\",'Σύνοψη έτους έως σήμερα'!B35)","v":""},0,0,0]
[{"$f":"IF(ISBLANK('Σύνοψη έτους έως σήμερα'!A36),\"\",'Σύνοψη έτους έως σήμερα'!A36)","v":""},{"$f":"IF(ISBLANK('Σύνοψη έτους έως σήμερα'!B36),\"\",'Σύνοψη έτους έως σήμερα'!B36)","v":""},0,0,0]

{"sheet":"3ο τρίμηνο","index":3,"n_rows":36,"n_cols":97,"rows_kept":36,"merged":[[3,0,3,6]]}
[{"$f":"Επωνυμία_Εταιρείας","v":"Επωνυμία εταιρείας"}]
["Ημερολόγιο παρακολούθησης παρουσιών, 3ο τρίμηνο"]
["Ημερομηνία"]
[{"$f":"Επωνυμία_Εταιρείας","v":"Επωνυμία εταιρείας"},{"$nulls":6},"ΕΜΠΙΣΤΕΥΤΙΚΌ"]
["Επώνυμο","Όνομα","Διακοπές","Προσωπικοί λόγοι","Ασθένεια","1/7","2/7","3/7","4/7","5/7","6/7","7/7","8/7","9/7","10/7","11/7","12/7","13/7","14/7","15/7","16/7","17/7","18/7","19/7","20/7","21/7","22/7","23/7","24/7","25/7","26/7","27/7","28/7","29/7","30/7","31/7","1/8","2/8","3/8","4/8","5/8","6/8","7/8","8/8","9/8","10/8","11/8","12/8","13/8","14/8","15/8","16/8","17/8","18/8","19/8","20/8","21/8","22/8","23/8","24/8","25/8","26/8","27/8","28/8","29/8","30/8","31/8","1/9","2/9","3/9","4/9","5/9","6/9","7/9","8/9","9/9","10/9","11/9","12/9","13/9","14/9","15/9","16/9","17/9","18/9","19/9","20/9","21/9","22/9","23/9","24/9","25/9","26/9","27/9","28/9","29/9","30/9"]
[{"$f":"IF(ISBLANK('Σύνοψη έτους έως σήμερα'!A6),\"\",'Σύνοψη έτους έως σήμερα'!A6)","v":"Επώνυμο"},{"$f":"IF(ISBLANK('Σύνοψη έτους έως σήμερα'!B6),\"\",'Σύνοψη έτους έως σήμερα'!B6)","v":"Όνομα"},{"$f":"COUNTIF($F6:$CS6, \"Δ\")","v":0},{"$f":"COUNTIF($F6:$CS6, \"Π\")","v":0},{"$f":"COUNTIF($F6:$CS6, \"Α\")","v":0}]
[{"$f":"IF(ISBLANK('Σύνοψη έτους έως σήμερα'!A7),\"\",'Σύνοψη έτους έως σήμερα'!A7)","v":""},{"$f":"IF(ISBLANK('Σύνοψη έτους έως σήμερα'!B7),\"\",'Σύνοψη έτους έως σήμερα'!B7)","v":""},0,0,0]
[{"$f":"IF(ISBLANK('Σύνοψη έτους έως σήμερα'!A8),\"\",'Σύνοψη έτους έως σήμερα'!A8)","v":""},{"$f":"IF(ISBLANK('Σύνοψη έτους έως σήμερα'!B8),\"\",'Σύνοψη έτους έως σήμερα'!B8)","v":""},0,0,0]
[{"$f":"IF(ISBLANK('Σύνοψη έτους έως σήμερα'!A9),\"\",'Σύνοψη έτους έως σήμερα'!A9)","v":""},{"$f":"IF(ISBLANK('Σύνοψη έτους έως σήμερα'!B9),\"\",'Σύνοψη έτους έως σήμερα'!B9)","v":""},0,0,0]
[{"$f":"IF(ISBLANK('Σύνοψη έτους έως σήμερα'!A10),\"\",'Σύνοψη έτους έως σήμερα'!A10)","v":""},{"$f":"IF(ISBLANK('Σύνοψη έτους έως σήμερα'!B10),\"\",'Σύνοψη έτους έως σήμερα'!B10)","v":""},0,0,0]
[{"$f":"IF(ISBLANK('Σύνοψη έτους έως σήμερα'!A11),\"\",'Σύνοψη έτους έως σήμερα'!A11)","v":""},{"$f":"IF(ISBLANK('Σύνοψη έτους έως σήμερα'!B11),\"\",'Σύνοψη έτους έως σήμερα'!B11)","v":""},0,0,0]
[{"$f":"IF(ISBLANK('Σύνοψη έτους έως σήμερα'!A12),\"\",'Σύνοψη έτους έως σήμερα'!A12)","v":""},{"$f":"IF(ISBLANK('Σύνοψη έτους έως σήμερα'!B12),\"\",'Σύνοψη έτους έως σήμερα'!B12)","v":""},0,0,0]
[{"$f":"IF(ISBLANK('Σύνοψη έτους έως σήμερα'!A13),\"\",'Σύνοψη έτους έως σήμερα'!A13)","v":""},{"$f":"IF(ISBLANK('Σύνοψη έτους έως σήμερα'!B13),\"\",'Σύνοψη έτους έως σήμερα'!B13)","v":""},0,0,0]
[{"$f":"IF(ISBLANK('Σύνοψη έτους έως σήμερα'!A14),\"\",'Σύνοψη έτους έως σήμερα'!A14)","v":""},{"$f":"IF(ISBLANK('Σύνοψη έτους έως σήμερα'!B14),\"\",'Σύνοψη έτους έως σήμερα'!B14)","v":""},0,0,0]
[{"$f":"IF(ISBLANK('Σύνοψη έτους έως σήμερα'!A15),\"\",'Σύνοψη έτους έως σήμερα'!A15)","v":""},{"$f":"IF(ISBLANK('Σύνοψη έτους έως σήμερα'!B15),\"\",'Σύνοψη έτους έως σήμερα'!B15)","v":""},0,0,0]
[{"$f":"IF(ISBLANK('Σύνοψη έτους έως σήμερα'!A16),\"\",'Σύνοψη έτους έως σήμερα'!A16)","v":""},{"$f":"IF(ISBLANK('Σύνοψη έτους έως σήμερα'!B16),\"\",'Σύνοψη έτους έως σήμερα'!B16)","v":""},0,0,0]
[{"$f":"IF(ISBLANK('Σύνοψη έτους έως σήμερα'!A17),\"\",'Σύνοψη έτους έως σήμερα'!A17)","v":""},{"$f":"IF(ISBLANK('Σύνοψη έτους έως σήμερα'!B17),\"\",'Σύνοψη έτους έως σήμερα'!B17)","v":""},0,0,0]
[{"$f":"IF(ISBLANK('Σύνοψη έτους έως σήμερα'!A18),\"\",'Σύνοψη έτους έως σήμερα'!A18)","v":""},{"$f":"IF(ISBLANK('Σύνοψη έτους έως σήμερα'!B18),\"\",'Σύνοψη έτους έως σήμερα'!B18)","v":""},0,0,0]
[{"$f":"IF(ISBLANK('Σύνοψη έτους έως σήμερα'!A19),\"\",'Σύνοψη έτους έως σήμερα'!A19)","v":""},{"$f":"IF(ISBLANK('Σύνοψη έτους έως σήμερα'!B19),\"\",'Σύνοψη έτους έως σήμερα'!B19)","v":""},0,0,0]
[{"$f":"IF(ISBLANK('Σύνοψη έτους έως σήμερα'!A20),\"\",'Σύνοψη έτους έως σήμερα'!A20)","v":""},{"$f":"IF(ISBLANK('Σύνοψη έτους έως σήμερα'!B20),\"\",'Σύνοψη έτους έως σήμερα'!B20)","v":""},0,0,0]
[{"$f":"IF(ISBLANK('Σύνοψη έτους έως σήμερα'!A21),\"\",'Σύνοψη έτους έως σήμερα'!A21)","v":""},{"$f":"IF(ISBLANK('Σύνοψη έτους έως σήμερα'!B21),\"\",'Σύνοψη έτους έως σήμερα'!B21)","v":""},0,0,0]
[{"$f":"IF(ISBLANK('Σύνοψη έτους έως σήμερα'!A22),\"\",'Σύνοψη έτους έως σήμερα'!A22)","v":""},{"$f":"IF(ISBLANK('Σύνοψη έτους έως σήμερα'!B22),\"\",'Σύνοψη έτους έως σήμερα'!B22)","v":""},0,0,0]
[{"$f":"IF(ISBLANK('Σύνοψη έτους έως σήμερα'!A23),\"\",'Σύνοψη έτους έως σήμερα'!A23)","v":""},{"$f":"IF(ISBLANK('Σύνοψη έτους έως σήμερα'!B23),\"\",'Σύνοψη έτους έως σήμερα'!B23)","v":""},0,0,0]
[{"$f":"IF(ISBLANK('Σύνοψη έτους έως σήμερα'!A24),\"\",'Σύνοψη έτους έως σήμερα'!A24)","v":""},{"$f":"IF(ISBLANK('Σύνοψη έτους έως σήμερα'!B24),\"\",'Σύνοψη έτους έως σήμερα'!B24)","v":""},0,0,0]
[{"$f":"IF(ISBLANK('Σύνοψη έτους έως σήμερα'!A25),\"\",'Σύνοψη έτους έως σήμερα'!A25)","v":""},{"$f":"IF(ISBLANK('Σύνοψη έτους έως σήμερα'!B25),\"\",'Σύνοψη έτους έως σήμερα'!B25)","v":""},0,0,0]
[{"$f":"IF(ISBLANK('Σύνοψη έτους έως σήμερα'!A26),\"\",'Σύνοψη έτους έως σήμερα'!A26)","v":""},{"$f":"IF(ISBLANK('Σύνοψη έτους έως σήμερα'!B26),\"\",'Σύνοψη έτους έως σήμερα'!B26)","v":""},0,0,0]
[{"$f":"IF(ISBLANK('Σύνοψη έτους έως σήμερα'!A27),\"\",'Σύνοψη έτους έως σήμερα'!A27)","v":""},{"$f":"IF(ISBLANK('Σύνοψη έτους έως σήμερα'!B27),\"\",'Σύνοψη έτους έως σήμερα'!B27)","v":""},0,0,0]
[{"$f":"IF(ISBLANK('Σύνοψη έτους έως σήμερα'!A28),\"\",'Σύνοψη έτους έως σήμερα'!A28)","v":""},{"$f":"IF(ISBLANK('Σύνοψη έτους έως σήμερα'!B28),\"\",'Σύνοψη έτους έως σήμερα'!B28)","v":""},0,0,0]
[{"$f":"IF(ISBLANK('Σύνοψη έτους έως σήμερα'!A29),\"\",'Σύνοψη έτους έως σήμερα'!A29)","v":""},{"$f":"IF(ISBLANK('Σύνοψη έτους έως σήμερα'!B29),\"\",'Σύνοψη έτους έως σήμερα'!B29)","v":""},0,0,0]
[{"$f":"IF(ISBLANK('Σύνοψη έτους έως σήμερα'!A30),\"\",'Σύνοψη έτους έως σήμερα'!A30)","v":""},{"$f":"IF(ISBLANK('Σύνοψη έτους έως σήμερα'!B30),\"\",'Σύνοψη έτους έως σήμερα'!B30)","v":""},0,0,0]
[{"$f":"IF(ISBLANK('Σύνοψη έτους έως σήμερα'!A31),\"\",'Σύνοψη έτους έως σήμερα'!A31)","v":""},{"$f":"IF(ISBLANK('Σύνοψη έτους έως σήμερα'!B31),\"\",'Σύνοψη έτους έως σήμερα'!B31)","v":""},0,0,0]
[{"$f":"IF(ISBLANK('Σύνοψη έτους έως σήμερα'!A32),\"\",'Σύνοψη έτους έως σήμερα'!A32)","v":""},{"$f":"IF(ISBLANK('Σύνοψη έτους έως σήμερα'!B32),\"\",'Σύνοψη έτους έως σήμερα'!B32)","v":""},0,0,0]
[{"$f":"IF(ISBLANK('Σύνοψη έτους έως σήμερα'!A33),\"\",'Σύνοψη έτους έως σήμερα'!A33)","v":""},{"$f":"IF(ISBLANK('Σύνοψη έτους έως σήμερα'!B33),\"\",'Σύνοψη έτους έως σήμερα'!B33)","v":""},0,0,0]
[{"$f":"IF(ISBLANK('Σύνοψη έτους έως σήμερα'!A34),\"\",'Σύνοψη έτους έως σήμερα'!A34)","v":""},{"$f":"IF(ISBLANK('Σύνοψη έτους έως σήμερα'!B34),\"\",'Σύνοψη έτους έως σήμερα'!B34)","v":""},0,0,0]
[{"$f":"IF(ISBLANK('Σύνοψη έτους έως σήμερα'!A35),\"\",'Σύνοψη έτους έως σήμερα'!A35)","v":""},{"$f":"IF(ISBLANK('Σύνοψη έτους έως σήμερα'!B35),\"\",'Σύνοψη έτους έως σήμερα'!B35)","v":""},0,0,0]
[{"$f":"IF(ISBLANK('Σύνοψη έτους έως σήμερα'!A36),\"\",'Σύνοψη έτους έως σήμερα'!A36)","v":""},{"$f":"IF(ISBLANK('Σύνοψη έτους έως σήμερα'!B36),\"\",'Σύνοψη έτους έως σήμερα'!B36)","v":""},0,0,0]

{"sheet":"4ο τρίμηνο","index":4,"n_rows":36,"n_cols":97,"rows_kept":36,"merged":[[3,0,3,6]]}
[{"$f":"Επωνυμία_Εταιρείας","v":"Επωνυμία εταιρείας"}]
["Ημερολόγιο παρακολούθησης παρουσιών, 4ο τρίμηνο"]
["Ημερομηνία"]
[{"$f":"Επωνυμία_Εταιρείας","v":"Επωνυμία εταιρείας"},{"$nulls":6},"ΕΜΠΙΣΤΕΥΤΙΚΌ"]
["Επώνυμο","Όνομα","Διακοπές","Προσωπικοί λόγοι","Ασθένεια","1/10","2/10","3/10","4/10","5/10","6/10","7/10","8/10","9/10","10/10","11/10","12/10","13/10","14/10","15/10","16/10","17/10","18/10","19/10","20/10","21/10","22/10","23/10","24/10","25/10","26/10","27/10","28/10","29/10","30/10","31/10","1/11","2/11","3/11","4/11","5/11","6/11","7/11","8/11","9/11","10/11","11/11","12/11","13/11","14/11","15/11","16/11","17/11","18/11","19/11","20/11","21/11","22/11","23/11","24/11","25/11","26/11","27/11","28/11","29/11","30/11","1/12","2/12","3/12","4/12","5/12","6/12","7/12","8/12","9/12","10/12","11/12","12/12","13/12","14/12","15/12","16/12","17/12","18/12","19/12","20/12","21/12","22/12","23/12","24/12","25/12","26/12","27/12","28/12","29/12","30/12","31/12"]
[{"$f":"IF(ISBLANK('Σύνοψη έτους έως σήμερα'!A6),\"\",'Σύνοψη έτους έως σήμερα'!A6)","v":"Επώνυμο"},{"$f":"IF(ISBLANK('Σύνοψη έτους έως σήμερα'!B6),\"\",'Σύνοψη έτους έως σήμερα'!B6)","v":"Όνομα"},{"$f":"COUNTIF($F6:$CS6, \"Δ\")","v":0},{"$f":"COUNTIF($F6:CS6, \"Π\")","v":0},{"$f":"COUNTIF($F6:CS6, \"Α\")","v":0}]
[{"$f":"IF(ISBLANK('Σύνοψη έτους έως σήμερα'!A7),\"\",'Σύνοψη έτους έως σήμερα'!A7)","v":""},{"$f":"IF(ISBLANK('Σύνοψη έτους έως σήμερα'!B7),\"\",'Σύνοψη έτους έως σήμερα'!B7)","v":""},0,{"$f":"COUNTIF($F7:CS7, \"Π\")","v":0},{"$f":"COUNTIF($F7:CS7, \"Α\")","v":0}]
[{"$f":"IF(ISBLANK('Σύνοψη έτους έως σήμερα'!A8),\"\",'Σύνοψη έτους έως σήμερα'!A8)","v":""},{"$f":"IF(ISBLANK('Σύνοψη έτους έως σήμερα'!B8),\"\",'Σύνοψη έτους έως σήμερα'!B8)","v":""},0,{"$f":"COUNTIF($F8:CS8, \"Π\")","v":0},{"$f":"COUNTIF($F8:CS8, \"Α\")","v":0}]
[{"$f":"IF(ISBLANK('Σύνοψη έτους έως σήμερα'!A9),\"\",'Σύνοψη έτους έως σήμερα'!A9)","v":""},{"$f":"IF(ISBLANK('Σύνοψη έτους έως σήμερα'!B9),\"\",'Σύνοψη έτους έως σήμερα'!B9)","v":""},0,{"$f":"COUNTIF($F9:CS9, \"Π\")","v":0},{"$f":"COUNTIF($F9:CS9, \"Α\")","v":0}]
[{"$f":"IF(ISBLANK('Σύνοψη έτους έως σήμερα'!A10),\"\",'Σύνοψη έτους έως σήμερα'!A10)","v":""},{"$f":"IF(ISBLANK('Σύνοψη έτους έως σήμερα'!B10),\"\",'Σύνοψη έτους έως σήμερα'!B10)","v":""},0,{"$f":"COUNTIF($F10:CS10, \"Π\")","v":0},{"$f":"COUNTIF($F10:CS10, \"Α\")","v":0}]
[{"$f":"IF(ISBLANK('Σύνοψη έτους έως σήμερα'!A11),\"\",'Σύνοψη έτους έως σήμερα'!A11)","v":""},{"$f":"IF(ISBLANK('Σύνοψη έτους έως σήμερα'!B11),\"\",'Σύνοψη έτους έως σήμερα'!B11)","v":""},0,{"$f":"COUNTIF($F11:CS11, \"Π\")","v":0},{"$f":"COUNTIF($F11:CS11, \"Α\")","v":0}]
[{"$f":"IF(ISBLANK('Σύνοψη έτους έως σήμερα'!A12),\"\",'Σύνοψη έτους έως σήμερα'!A12)","v":""},{"$f":"IF(ISBLANK('Σύνοψη έτους έως σήμερα'!B12),\"\",'Σύνοψη έτους έως σήμερα'!B12)","v":""},0,{"$f":"COUNTIF($F12:CS12, \"Π\")","v":0},{"$f":"COUNTIF($F12:CS12, \"Α\")","v":0}]
[{"$f":"IF(ISBLANK('Σύνοψη έτους έως σήμερα'!A13),\"\",'Σύνοψη έτους έως σήμερα'!A13)","v":""},{"$f":"IF(ISBLANK('Σύνοψη έτους έως σήμερα'!B13),\"\",'Σύνοψη έτους έως σήμερα'!B13)","v":""},0,{"$f":"COUNTIF($F13:CS13, \"Π\")","v":0},{"$f":"COUNTIF($F13:CS13, \"Α\")","v":0}]
[{"$f":"IF(ISBLANK('Σύνοψη έτους έως σήμερα'!A14),\"\",'Σύνοψη έτους έως σήμερα'!A14)","v":""},{"$f":"IF(ISBLANK('Σύνοψη έτους έως σήμερα'!B14),\"\",'Σύνοψη έτους έως σήμερα'!B14)","v":""},0,{"$f":"COUNTIF($F14:CS14, \"Π\")","v":0},{"$f":"COUNTIF($F14:CS14, \"Α\")","v":0}]
[{"$f":"IF(ISBLANK('Σύνοψη έτους έως σήμερα'!A15),\"\",'Σύνοψη έτους έως σήμερα'!A15)","v":""},{"$f":"IF(ISBLANK('Σύνοψη έτους έως σήμερα'!B15),\"\",'Σύνοψη έτους έως σήμερα'!B15)","v":""},0,{"$f":"COUNTIF($F15:CS15, \"Π\")","v":0},{"$f":"COUNTIF($F15:CS15, \"Α\")","v":0}]
[{"$f":"IF(ISBLANK('Σύνοψη έτους έως σήμερα'!A16),\"\",'Σύνοψη έτους έως σήμερα'!A16)","v":""},{"$f":"IF(ISBLANK('Σύνοψη έτους έως σήμερα'!B16),\"\",'Σύνοψη έτους έως σήμερα'!B16)","v":""},0,{"$f":"COUNTIF($F16:CS16, \"Π\")","v":0},{"$f":"COUNTIF($F16:CS16, \"Α\")","v":0}]
[{"$f":"IF(ISBLANK('Σύνοψη έτους έως σήμερα'!A17),\"\",'Σύνοψη έτους έως σήμερα'!A17)","v":""},{"$f":"IF(ISBLANK('Σύνοψη έτους έως σήμερα'!B17),\"\",'Σύνοψη έτους έως σήμερα'!B17)","v":""},0,{"$f":"COUNTIF($F17:CS17, \"Π\")","v":0},{"$f":"COUNTIF($F17:CS17, \"Α\")","v":0}]
[{"$f":"IF(ISBLANK('Σύνοψη έτους έως σήμερα'!A18),\"\",'Σύνοψη έτους έως σήμερα'!A18)","v":""},{"$f":"IF(ISBLANK('Σύνοψη έτους έως σήμερα'!B18),\"\",'Σύνοψη έτους έως σήμερα'!B18)","v":""},0,{"$f":"COUNTIF($F18:CS18, \"Π\")","v":0},{"$f":"COUNTIF($F18:CS18, \"Α\")","v":0}]
[{"$f":"IF(ISBLANK('Σύνοψη έτους έως σήμερα'!A19),\"\",'Σύνοψη έτους έως σήμερα'!A19)","v":""},{"$f":"IF(ISBLANK('Σύνοψη έτους έως σήμερα'!B19),\"\",'Σύνοψη έτους έως σήμερα'!B19)","v":""},0,{"$f":"COUNTIF($F19:CS19, \"Π\")","v":0},{"$f":"COUNTIF($F19:CS19, \"Α\")","v":0}]
[{"$f":"IF(ISBLANK('Σύνοψη έτους έως σήμερα'!A20),\"\",'Σύνοψη έτους έως σήμερα'!A20)","v":""},{"$f":"IF(ISBLANK('Σύνοψη έτους έως σήμερα'!B20),\"\",'Σύνοψη έτους έως σήμερα'!B20)","v":""},0,{"$f":"COUNTIF($F20:CS20, \"Π\")","v":0},{"$f":"COUNTIF($F20:CS20, \"Α\")","v":0}]
[{"$f":"IF(ISBLANK('Σύνοψη έτους έως σήμερα'!A21),\"\",'Σύνοψη έτους έως σήμερα'!A21)","v":""},{"$f":"IF(ISBLANK('Σύνοψη έτους έως σήμερα'!B21),\"\",'Σύνοψη έτους έως σήμερα'!B21)","v":""},0,{"$f":"COUNTIF($F21:CS21, \"Π\")","v":0},{"$f":"COUNTIF($F21:CS21, \"Α\")","v":0}]
[{"$f":"IF(ISBLANK('Σύνοψη έτους έως σήμερα'!A22),\"\",'Σύνοψη έτους έως σήμερα'!A22)","v":""},{"$f":"IF(ISBLANK('Σύνοψη έτους έως σήμερα'!B22),\"\",'Σύνοψη έτους έως σήμερα'!B22)","v":""},0,{"$f":"COUNTIF($F22:CS22, \"Π\")","v":0},{"$f":"COUNTIF($F22:CS22, \"Α\")","v":0}]
[{"$f":"IF(ISBLANK('Σύνοψη έτους έως σήμερα'!A23),\"\",'Σύνοψη έτους έως σήμερα'!A23)","v":""},{"$f":"IF(ISBLANK('Σύνοψη έτους έως σήμερα'!B23),\"\",'Σύνοψη έτους έως σήμερα'!B23)","v":""},0,{"$f":"COUNTIF($F23:CS23, \"Π\")","v":0},{"$f":"COUNTIF($F23:CS23, \"Α\")","v":0}]
[{"$f":"IF(ISBLANK('Σύνοψη έτους έως σήμερα'!A24),\"\",'Σύνοψη έτους έως σήμερα'!A24)","v":""},{"$f":"IF(ISBLANK('Σύνοψη έτους έως σήμερα'!B24),\"\",'Σύνοψη έτους έως σήμερα'!B24)","v":""},0,{"$f":"COUNTIF($F24:CS24, \"Π\")","v":0},{"$f":"COUNTIF($F24:CS24, \"Α\")","v":0}]
[{"$f":"IF(ISBLANK('Σύνοψη έτους έως σήμερα'!A25),\"\",'Σύνοψη έτους έως σήμερα'!A25)","v":""},{"$f":"IF(ISBLANK('Σύνοψη έτους έως σήμερα'!B25),\"\",'Σύνοψη έτους έως σήμερα'!B25)","v":""},0,{"$f":"COUNTIF($F25:CS25, \"Π\")","v":0},{"$f":"COUNTIF($F25:CS25, \"Α\")","v":0}]
[{"$f":"IF(ISBLANK('Σύνοψη έτους έως σήμερα'!A26),\"\",'Σύνοψη έτους έως σήμερα'!A26)","v":""},{"$f":"IF(ISBLANK('Σύνοψη έτους έως σήμερα'!B26),\"\",'Σύνοψη έτους έως σήμερα'!B26)","v":""},0,{"$f":"COUNTIF($F26:CS26, \"Π\")","v":0},{"$f":"COUNTIF($F26:CS26, \"Α\")","v":0}]
[{"$f":"IF(ISBLANK('Σύνοψη έτους έως σήμερα'!A27),\"\",'Σύνοψη έτους έως σήμερα'!A27)","v":""},{"$f":"IF(ISBLANK('Σύνοψη έτους έως σήμερα'!B27),\"\",'Σύνοψη έτους έως σήμερα'!B27)","v":""},0,{"$f":"COUNTIF($F27:CS27, \"Π\")","v":0},{"$f":"COUNTIF($F27:CS27, \"Α\")","v":0}]
[{"$f":"IF(ISBLANK('Σύνοψη έτους έως σήμερα'!A28),\"\",'Σύνοψη έτους έως σήμερα'!A28)","v":""},{"$f":"IF(ISBLANK('Σύνοψη έτους έως σήμερα'!B28),\"\",'Σύνοψη έτους έως σήμερα'!B28)","v":""},0,{"$f":"COUNTIF($F28:CS28, \"Π\")","v":0},{"$f":"COUNTIF($F28:CS28, \"Α\")","v":0}]
[{"$f":"IF(ISBLANK('Σύνοψη έτους έως σήμερα'!A29),\"\",'Σύνοψη έτους έως σήμερα'!A29)","v":""},{"$f":"IF(ISBLANK('Σύνοψη έτους έως σήμερα'!B29),\"\",'Σύνοψη έτους έως σήμερα'!B29)","v":""},0,{"$f":"COUNTIF($F29:CS29, \"Π\")","v":0},{"$f":"COUNTIF($F29:CS29, \"Α\")","v":0}]
[{"$f":"IF(ISBLANK('Σύνοψη έτους έως σήμερα'!A30),\"\",'Σύνοψη έτους έως σήμερα'!A30)","v":""},{"$f":"IF(ISBLANK('Σύνοψη έτους έως σήμερα'!B30),\"\",'Σύνοψη έτους έως σήμερα'!B30)","v":""},0,{"$f":"COUNTIF($F30:CS30, \"Π\")","v":0},{"$f":"COUNTIF($F30:CS30, \"Α\")","v":0}]
[{"$f":"IF(ISBLANK('Σύνοψη έτους έως σήμερα'!A31),\"\",'Σύνοψη έτους έως σήμερα'!A31)","v":""},{"$f":"IF(ISBLANK('Σύνοψη έτους έως σήμερα'!B31),\"\",'Σύνοψη έτους έως σήμερα'!B31)","v":""},0,{"$f":"COUNTIF($F31:CS31, \"Π\")","v":0},{"$f":"COUNTIF($F31:CS31, \"Α\")","v":0}]
[{"$f":"IF(ISBLANK('Σύνοψη έτους έως σήμερα'!A32),\"\",'Σύνοψη έτους έως σήμερα'!A32)","v":""},{"$f":"IF(ISBLANK('Σύνοψη έτους έως σήμερα'!B32),\"\",'Σύνοψη έτους έως σήμερα'!B32)","v":""},0,{"$f":"COUNTIF($F32:CS32, \"Π\")","v":0},{"$f":"COUNTIF($F32:CS32, \"Α\")","v":0}]
[{"$f":"IF(ISBLANK('Σύνοψη έτους έως σήμερα'!A33),\"\",'Σύνοψη έτους έως σήμερα'!A33)","v":""},{"$f":"IF(ISBLANK('Σύνοψη έτους έως σήμερα'!B33),\"\",'Σύνοψη έτους έως σήμερα'!B33)","v":""},0,{"$f":"COUNTIF($F33:CS33, \"Π\")","v":0},{"$f":"COUNTIF($F33:CS33, \"Α\")","v":0}]
[{"$f":"IF(ISBLANK('Σύνοψη έτους έως σήμερα'!A34),\"\",'Σύνοψη έτους έως σήμερα'!A34)","v":""},{"$f":"IF(ISBLANK('Σύνοψη έτους έως σήμερα'!B34),\"\",'Σύνοψη έτους έως σήμερα'!B34)","v":""},0,{"$f":"COUNTIF($F34:CS34, \"Π\")","v":0},{"$f":"COUNTIF($F34:CS34, \"Α\")","v":0}]
[{"$f":"IF(ISBLANK('Σύνοψη έτους έως σήμερα'!A35),\"\",'Σύνοψη έτους έως σήμερα'!A35)","v":""},{"$f":"IF(ISBLANK('Σύνοψη έτους έως σήμερα'!B35),\"\",'Σύνοψη έτους έως σήμερα'!B35)","v":""},0,{"$f":"COUNTIF($F35:CS35, \"Π\")","v":0},{"$f":"COUNTIF($F35:CS35, \"Α\")","v":0}]
[{"$f":"IF(ISBLANK('Σύνοψη έτους έως σήμερα'!A36),\"\",'Σύνοψη έτους έως σήμερα'!A36)","v":""},{"$f":"IF(ISBLANK('Σύνοψη έτους έως σήμερα'!B36),\"\",'Σύνοψη έτους έως σήμερα'!B36)","v":""},0,{"$f":"COUNTIF($F36:CS36, \"Π\")","v":0},{"$f":"COUNTIF($F36:CS36, \"Α\")","v":0}]